fUSD/lending_fUSD_20241101
["ID","MTS","AMOUNT","RATE_DAILY","PERIOD"]
[341137077,1730457105971,190.793,0.00035972,2]
[341137078,1730457132546,151.0,0.0003,120]
[341137093,1730457252928,250.0,0.00039585,120]
[341137095,1730457307721,153.07186037,0.00039478,120]
[341137100,1730457353936,158.59,0.00015342,2]
[341137104,1730457493773,-153.0,0.00035616,2]
[341137105,1730457493796,-228.5805,0.00035972,2]
[341137106,1730457493818,-175.326,0.00035972,2]
[341137107,1730457493840,-165.87749116,0.00037911,2]
[341137108,1730457493861,-968.98706156,0.00038011,2]
[341137109,1730457493884,-590.91,0.00038011,2]
[341137110,1730457493905,-196.65,0.00039137,2]
[341137111,1730457493926,-846.92813963,0.00039478,120]
[341137112,1730457493948,-1000.0,0.00039542,2]
[341137113,1730457560904,980.0,0.00034,2]
[341137114,1730457561767,882.0,0.00034,2]
[341137115,1730457596530,282.09637328,0.00039272,30]
[341137116,1730457674561,250.0,0.00017,2]
[341137117,1730457675643,300.0,0.00019,2]
[341137118,1730457676759,185.38425,0.00035972,2]
[341137119,1730457684829,190.85,0.00038901,2]
[341137120,1730457685034,190.85,0.00039526,2]
[341137121,1730457702573,153.0,0.00035616,2]
[341137122,1730457710447,153.0,0.00035616,2]
[341137123,1730457710986,595.85,0.00037934,2]
[341137124,1730457916474,157.76,0.00015342,2]
[341137125,1730458035136,-268.73,0.00039681,2]
[341137126,1730458035160,-173.39064498,0.00039681,2]
[341137134,1730458232196,-166.64,0.00037464,2]
[341137135,1730458232205,-146.92832316,0.00039392,120]
[341137136,1730458232298,-15.13167684,0.00039392,120]
[341137137,1730458232308,-932.27,0.00039573,2]
[341137138,1730458232425,-1120.88711506,0.00039587,2]
[341137139,1730458232436,-1203.16288494,0.00039587,2]
[341137140,1730458232446,-26.60935502,0.00039681,2]
[341137141,1730458232455,-1000.0,0.00039691,2]
[341137142,1730458232463,-2664.59,0.00039822,2]
[341137143,1730458232473,-341.35030639,0.00039884,2]
[341137144,1730458232482,-1393.08745365,0.0004,120]
[341137145,1730458232501,-1359.01616315,0.0004,120]
[341137146,1730458232511,-21802.57348765,0.0004011,2]
[341137147,1730458232519,-595.85,0.00040198,2]
[341137148,1730458232529,-341.35030639,0.00040211,2]
[341137149,1730458232538,-1455.03950839,0.00040399,15]
[341137150,1730458232547,-495.7101,0.00040399,2]
[341137151,1730458232556,-1241.23913376,0.000404,7]
[341137152,1730458232571,-1241.54206624,0.000404,7]
[341137153,1730458232580,-198.21728087,0.000404,28]
[341137154,1730458232589,-1011.0103,0.00040412,2]
[341137155,1730458232598,-441.5459,0.00040412,2]
[341137156,1730458232608,-742.38810257,0.00040414,2]
[341137162,1730458238336,-234.0,0.00038526,2]
[341137163,1730458238346,-234.0,0.00039145,2]
[341137164,1730458238355,-234.0,0.00039764,2]
[341137165,1730458238365,-234.0,0.00040383,2]
[341137166,1730458238374,-1266.08,0.00040414,2]
[341137167,1730458238386,-4162.32613651,0.00040414,2]
[341137168,1730458238396,-675.9508,0.00040466,10]
[341137169,1730458238406,-551.12,0.00040489,10]
[341137170,1730458238416,-459.26,0.00040489,10]
[341137171,1730458238425,-382.72,0.00040489,10]
[341137172,1730458238435,-500.0,0.00040498,31]
[341137173,1730458238444,-187.76619209,0.00040498,31]
[341137174,1730458238453,-500.0,0.00040498,31]
[341137175,1730458238462,-437.45632561,0.00040498,31]
[341137176,1730458238471,-10925.64388716,0.00040499,2]
[341137177,1730458238480,-51439.1155725,0.00040499,2]
[341137178,1730458238558,-33.62518632,0.00040499,2]
[341137179,1730458238570,-25322.90507919,0.00040499,2]
[341137239,1730458240421,-0.02322181,0.00040499,2]
[341137241,1730458240432,-3235.91207605,0.00040499,2]
[341137259,1730458240713,-481.97002912,0.00040499,2]
[341137260,1730458240724,-52892.38281471,0.00040499,2]
[341137261,1730458240739,-2522.03399999,0.00040499,2]
[341137262,1730458240751,-2717.69459299,0.00040499,2]
[341137266,1730458243275,-311.83469523,0.00038039,2]
[341137269,1730458246415,-285.57530477,0.00038039,2]
[341137270,1730458246425,-597.41,0.00040303,2]
[341137271,1730458246434,-318.93,0.0004049,10]
[341137272,1730458246444,-13964.47765313,0.00040499,2]
[341137273,1730458246453,-172.187,0.00040499,58]
[341137274,1730458246463,-57000.0,0.00040499,2]
[341137275,1730458246473,-568.47307093,0.00040499,30]
[341137276,1730458246483,-2500.0,0.00040499,2]
[341137277,1730458246492,-301.7171,0.000405,2]
[341137278,1730458246502,-5517.408,0.000405,2]
[341137279,1730458246512,-926.7483,0.000405,2]
[341137280,1730458246521,-1731.134,0.000405,2]
[341137281,1730458246532,-6163.7574,0.000405,2]
[341137282,1730458246541,-62516.5353,0.000405,2]
[341137283,1730458246550,-14108.2612,0.000405,2]
[341137284,1730458246559,-1000.0,0.000405,2]
[341137285,1730458246571,-356.509056,0.000405,14]
[341137286,1730458246580,-356.509056,0.000405,14]
[341137287,1730458246589,-151.0,0.000405,14]
[341137288,1730458246598,-151.0,0.000405,14]
[341137289,1730458246607,-151.0,0.000405,14]
[341137290,1730458246615,-151.0,0.000405,14]
[341137291,1730458246624,-175.397151,0.000405,14]
[341137292,1730458246634,-175.397151,0.000405,14]
[341137293,1730458246643,-151.0,0.000405,14]
[341137294,1730458246652,-173.552157,0.000405,14]
[341137295,1730458246661,-175.397151,0.000405,14]
[341137296,1730458246670,-175.397151,0.000405,14]
[341137297,1730458246680,-151.0,0.000405,14]
[341137298,1730458246689,-188.16409,0.000405,14]
[341137299,1730458246698,-504.87834016,0.00040573,5]
[341137300,1730458246707,-190.11514922,0.00040573,5]
[341137301,1730458246716,-152.89,0.0004059,2]
[341137302,1730458246726,-166.88031279,0.0004059,2]
[341137303,1730458246735,-191.263211,0.00040599,14]
[341137304,1730458246745,-262620.83794588,0.000406,2]
[341137305,1730458246754,-151.0,0.000406,14]
[341137306,1730458246763,-151.0,0.000406,14]
[341137307,1730458246772,-151.0,0.000406,14]
[341137308,1730458246781,-151.0,0.000406,7]
[341137309,1730458246791,-151.0,0.000406,14]
[341137310,1730458246800,-356.509056,0.000406,14]
[341137311,1730458246809,-356.509056,0.000406,14]
[341137312,1730458246818,-151.0,0.000406,14]
[341137313,1730458246827,-151.0,0.000406,14]
[341137314,1730458246838,-175.397151,0.000406,14]
[341137315,1730458246851,-175.397151,0.000406,14]
[341137316,1730458246860,-151.0,0.000406,14]
[341137317,1730458246870,-68497.67321695,0.000406,2]
[341137318,1730458246879,-452.32957623,0.00040608,2]
[341137319,1730458302443,153.0,0.00035616,2]
[341137320,1730458305339,353.89575,0.00035865,2]
[341137321,1730458307272,185.075,0.00035865,2]
[341137323,1730458473338,158.41,0.00015342,2]
[341137325,1730458948106,-536.71,0.00039301,120]
[341137326,1730458948181,-200.0,0.00042,120]
[341137327,1730458948206,-500.0,0.0004219,120]
[341137328,1730458948228,-500.0,0.0004219,120]
[341137329,1730458948250,-430.82,0.0004219,120]
[341137330,1730458948338,-69.18,0.0004219,120]
[341137331,1730458948363,-500.0,0.0004219,120]
[341137332,1730458948384,-500.0,0.0004219,120]
[341137333,1730458948407,-426.23086,0.0004219,120]
[341137334,1730458948488,-73.76914,0.0004219,120]
[341137335,1730458948509,-106.23086,0.0004219,120]
[341137336,1730458948585,-393.76914,0.0004219,120]
[341137337,1730458948609,-500.0,0.0004219,120]
[341137338,1730458948630,-500.0,0.0004219,120]
[341137339,1730458948651,-500.0,0.0004219,120]
[341137340,1730458948676,-500.0,0.0004219,120]
[341137341,1730458948698,-500.0,0.0004219,120]
[341137342,1730458948720,-500.0,0.0004219,120]
[341137343,1730458948742,-500.0,0.0004219,120]
[341137344,1730458948764,-153.10261402,0.0004219,120]
[341137345,1730458948841,-346.89738598,0.0004219,120]
[341137346,1730458948864,-500.0,0.0004219,120]
[341137347,1730458948895,-1403.90261402,0.00042464,120]
[341137348,1730458948986,-763.62738598,0.00042464,120]
[341137349,1730458949023,-1000.0,0.00043,120]
[341137350,1730458949044,-495.41086,0.00043,120]
[341137351,1730458949073,-2167.53,0.00043149,120]
[341137352,1730458949094,-180.0,0.000432,120]
[341137353,1730458949122,-500.0,0.000433,120]
[341137354,1730458949144,-500.0,0.000433,120]
[341137355,1730458949165,-500.0,0.000433,120]
[341137356,1730458949187,-500.0,0.000433,120]
[341137357,1730458949208,-500.0,0.000433,120]
[341137358,1730458949232,-500.0,0.000433,120]
[341137359,1730458949253,-500.0,0.000433,120]
[341137360,1730458949274,-500.0,0.000433,120]
[341137361,1730458949295,-500.0,0.000433,120]
[341137362,1730458949319,-500.0,0.000433,120]
[341137363,1730458949342,-500.0,0.000433,120]
[341137364,1730458949366,-500.0,0.000433,120]
[341137365,1730458949387,-500.0,0.000433,120]
[341137366,1730458949409,-500.0,0.000433,120]
[341137367,1730458949431,-500.0,0.000433,120]
[341137368,1730458949452,-500.0,0.000433,120]
[341137369,1730458949473,-500.0,0.000433,120]
[341137370,1730458949494,-500.0,0.000433,120]
[341137371,1730458949515,-500.0,0.000433,120]
[341137372,1730458949536,-500.0,0.000433,120]
[341137373,1730458949557,-500.0,0.000433,120]
[341137374,1730458949578,-500.0,0.000433,120]
[341137375,1730458949600,-500.0,0.000433,120]
[341137376,1730458949625,-500.0,0.000433,120]
[341137377,1730458949648,-500.0,0.000433,120]
[341137378,1730458949675,-500.0,0.000433,120]
[341137379,1730458949697,-500.0,0.000433,120]
[341137380,1730458949833,-500.0,0.000433,120]
[341137381,1730458949859,-500.0,0.000433,120]
[341137382,1730458949880,-500.0,0.000433,120]
[341137383,1730458949902,-500.0,0.000433,120]
[341137384,1730458949924,-500.0,0.000433,120]
[341137385,1730458949948,-500.0,0.000433,120]
[341137386,1730458949972,-500.0,0.000433,120]
[341137387,1730458949995,-500.0,0.000433,120]
[341137388,1730458950024,-500.0,0.000433,120]
[341137389,1730458950048,-500.0,0.000433,120]
[341137390,1730458950073,-500.0,0.000433,120]
[341137391,1730458950098,-500.0,0.000433,120]
[341137392,1730458950130,-150.0,0.0004374,120]
[341137393,1730458950150,-150.5,0.00043824,120]
[341137394,1730458950172,-2167.53,0.00043834,120]
[341137395,1730458950196,-1000.0,0.00043835,120]
[341137396,1730458950218,-1046.87175402,0.00043835,120]
[341137397,1730458950240,-2000.0,0.00043835,120]
[341137398,1730458950265,-184.28893103,0.000439,120]
[341137399,1730458950291,-1000.0,0.00044,120]
[341137400,1730458950317,-300.0,0.00044,120]
[341137401,1730458950339,-1250.8,0.00044,120]
[341137402,1730458950368,-2000.0,0.000443,120]
[341137403,1730458950396,-715.0033672,0.000444,120]
[341137404,1730458950421,-2167.53,0.00044519,120]
[341137405,1730458961343,158.79,0.00015342,2]
[341137406,1730458970037,154.0,0.00010142,2]
[341137407,1730459028809,195.0,0.000102,2]
[341137408,1730459078351,150.0,0.00022,2]
[341137409,1730459088961,187.0,0.00010142,2]
[341137410,1730459205133,-479.66209009,0.00035,30]
[341137411,1730459221427,1806.27,0.00042464,120]
[341137412,1730459221704,934.90278952,0.00043149,120]
[341137413,1730459221727,871.36721048,0.00043149,120]
[341137414,1730459222002,1296.16278952,0.00043834,120]
[341137415,1730459222026,510.10721048,0.00043834,120]
[341137416,1730459226101,-10.33790991,0.00035,30]
[341137417,1730459226120,-530.23648635,0.00035872,2]
[341137418,1730459226141,-209.39125,0.00035972,2]
[341137419,1730459226160,-537.66,0.00037585,2]
[341137420,1730459226180,-166.17,0.00038329,2]
[341137421,1730459226199,-166.17,0.00038945,2]
[341137422,1730459226218,-350.32,0.0003917,2]
[341137423,1730459226236,-179.99,0.0003917,30]
[341137424,1730459226255,-465.73,0.00039177,2]
[341137425,1730459226274,-201.44164309,0.00039177,2]
[341137426,1730459247160,-235.0,0.000336,2]
[341137427,1730459247182,-990.10587238,0.00039177,2]
[341137428,1730459267653,204.89615672,0.0004,120]
[341137429,1730459267676,328.692066,0.0004,120]
[341137431,1730459302186,176.97,0.00039689,120]
[341137432,1730459330887,250.0,0.00039663,120]
[341137433,1730459352048,358.11899868,0.000443,120]
[341137434,1730459420952,886.21893532,0.0004219,120]
[341137435,1730459420976,694.27106468,0.0004219,120]
[341137436,1730459421235,1473.25893532,0.00042875,120]
[341137437,1730459421259,107.23106468,0.00042875,120]
[341137438,1730459421641,77.05786635,0.0004356,120]
[341137450,1730459432427,-531.49,0.00037755,2]
[341137451,1730459432438,-2630.76248453,0.00039177,2]
[341137452,1730459432448,-150.0,0.00039309,2]
[341137453,1730459432457,-528.0,0.00039505,4]
[341137454,1730459432466,-1500.0,0.00039535,2]
[341137455,1730459432475,-2653.87,0.00039557,2]
[341137456,1730459432484,-166.17,0.00039561,2]
[341137457,1730459432494,-250.0,0.00039596,2]
[341137458,1730459432504,-1000.0,0.00039607,2]
[341137459,1730459432513,-927.63,0.00039629,2]
[341137460,1730459432522,-1982.83,0.00039654,2]
[341137461,1730459432532,-250.0,0.00039656,2]
[341137462,1730459432541,-694.27,0.00039657,2]
[341137463,1730459432550,-185.64,0.00039867,2]
[341137464,1730459432559,-1086.21852169,0.0003991,2]
[341137465,1730459432569,-1086.21852168,0.0003991,2]
[341137466,1730459432578,-292.11,0.00039949,2]
[341137467,1730459432588,-237.378,0.00040009,56]
[341137468,1730459432597,-171.862,0.00040009,56]
[341137469,1730459432606,-531.49,0.00040019,2]
[341137470,1730459432616,-150.0,0.00040063,2]
[341137471,1730459432625,-1215.71279228,0.00040129,2]
[341137472,1730459432635,-166.17,0.00040177,2]
[341137473,1730459432644,-159.393,0.00040177,2]
[341137474,1730459432654,-159.393,0.00040177,2]
[341137475,1730459432663,-159.393,0.00040177,2]
[341137476,1730459432672,-159.393,0.00040177,2]
[341137477,1730459432681,-159.393,0.00040177,2]
[341137478,1730459432691,-159.393,0.00040177,2]
[341137479,1730459432700,-159.393,0.00040177,2]
[341137480,1730459432709,-159.393,0.00040177,2]
[341137481,1730459432719,-159.393,0.00040177,2]
[341137482,1730459432728,-159.393,0.00040177,2]
[341137483,1730459432737,-67134.4269,0.00040289,7]
[341137484,1730459432747,-150.0,0.00040324,2]
[341137485,1730459432757,-808.22,0.00040369,10]
[341137486,1730459432766,-786.47,0.00040389,10]
[341137487,1730459432775,-3190.83730808,0.00040389,5]
[341137489,1730459432785,-164.21315472,0.0004039,2]
[341137491,1730459432794,-4688.21678224,0.00040399,2]
[341137492,1730459432806,-17246.09952197,0.00040399,2]
[341137494,1730459432821,-491.42385491,0.00040399,2]
[341137496,1730459432837,-5172.33205587,0.00040399,2]
[341137498,1730459432850,-2613.19812,0.00040399,2]
[341137500,1730459432862,-1198.16775,0.00040399,2]
[341137503,1730459432872,-1737.5141828,0.00040399,2]
[341137505,1730459432884,-3388.7376355,0.00040399,2]
[341137507,1730459432896,-1650.45501,0.00040399,2]
[341137509,1730459432907,-3334.59808671,0.00040399,2]
[341137512,1730459432917,-5893.4934,0.00040399,2]
[341137514,1730459432927,-150.0,0.00040423,2]
[341137516,1730459432937,-150.0,0.00040441,2]
[341137518,1730459432949,-150.0,0.00040474,2]
[341137520,1730459432958,-1309.53555756,0.00040508,15]
[341137521,1730459432968,-5.88019908,0.00040608,2]
[341137524,1730459432977,-2000.0,0.00040608,7]
[341137526,1730459432986,-200.0,0.00040608,7]
[341137527,1730459432995,-1275.12222097,0.00040632,2]
[341137529,1730459433005,-16424.90255445,0.00040633,2]
[341137530,1730459433019,-3404.34633378,0.00040636,2]
[341137531,1730459433030,-3404.34633378,0.0004064,2]
[341137533,1730459433039,-68497.67321695,0.00040645,2]
[341137535,1730459433048,-1871.02324921,0.00040663,2]
[341137537,1730459433058,-458.20977531,0.00040673,2]
[341137539,1730459433067,-22607.4222918,0.00040679,2]
[341137540,1730459433077,-1751.24664056,0.00040681,2]
[341137541,1730459433086,-168.95,0.00040682,2]
[341137542,1730459433095,-7340.9919378,0.00040685,2]
[341137544,1730459438420,-15266.430354,0.00040685,2]
[341137545,1730459438429,-3404.34633378,0.00040699,2]
[341137546,1730459438439,-458.20977531,0.00040705,2]
[341137547,1730459438448,-68497.67321695,0.0004071,2]
[341137548,1730459438457,-3404.34633378,0.00040719,2]
[341137549,1730459438467,-15582.15589522,0.00040721,2]
[341137612,1730459450791,-7025.26639658,0.00040721,2]
[341137613,1730459450800,-2209.24410212,0.00040728,2]
[341137614,1730459450882,-2717.69459299,0.00040728,2]
[341137615,1730459450895,-2099.4196793,0.00040728,2]
[341137616,1730459451015,-53.29578773,0.00040728,2]
[341137617,1730459451026,-1423.897776,0.00040728,2]
[341137618,1730459451240,-3803.85456827,0.00040728,2]
[341137619,1730459451255,-666.00911142,0.00040728,2]
[341137620,1730459451558,1551.82761493,0.00019486,2]
[341137621,1730459455907,189.81375,0.00035972,2]
[341137622,1730459488867,156.82,0.00015342,2]
[341137624,1730459517247,150.0,0.00019711,2]
[341137625,1730459517279,150.0,0.00019547,2]
[341137626,1730459517333,150.0,0.00019471,2]
[341137627,1730459517389,150.0,0.0001952,2]
[341137628,1730459517445,150.0,0.00019476,2]
[341137629,1730459517507,150.0,0.0001958,2]
[341137630,1730459581270,300.0,0.00019725,2]
[341137631,1730459582000,300.0,0.00021484,2]
[341137632,1730459648938,500.0,0.00041326,120]
[341137633,1730459649800,500.0,0.00041326,120]
[341137634,1730459650170,500.0,0.00041326,120]
[341137635,1730459650513,500.0,0.00041326,120]
[341137636,1730459650810,167.53,0.00041326,120]
[341137637,1730459650834,332.47,0.00041326,120]
[341137638,1730459651681,500.0,0.00041326,120]
[341137639,1730459652004,500.0,0.00041326,120]
[341137640,1730459652392,500.0,0.00041326,120]
[341137641,1730459683650,1445.57,0.00041999,120]
[341137642,1730459683948,1445.57,0.00042684,120]
[341137643,1730459882349,1325.1,0.00042464,120]
[341137644,1730459882653,1325.1,0.00043149,120]
[341137646,1730459986608,500.0,0.000433,120]
[341137647,1730460037105,535.07545195,0.000433,120]
[341137648,1730460047784,156.97,0.00015342,2]
[341137649,1730460149624,1214.68,0.00042464,120]
[341137650,1730460149912,1214.68,0.00043149,120]
[341137652,1730460370621,2322.69139185,0.000199,3]
[341137653,1730460410820,1113.46,0.00042464,120]
[341137654,1730460411229,1113.46,0.00043149,120]
[341137655,1730460434157,-3358.02858724,0.00030545,2]
[341137656,1730460443146,-3398.26474961,0.00030545,2]
[341137657,1730460443173,-985.361,0.00035972,2]
[341137658,1730460443194,-478.34,0.00037527,2]
[341137659,1730460443218,-166.17,0.00038642,2]
[341137660,1730460443240,-153.0,0.00039262,2]
[341137661,1730460443262,-153.0,0.00039262,2]
[341137662,1730460443283,-153.0,0.00039262,2]
[341137663,1730460443304,-153.0,0.00039268,2]
[341137664,1730460443324,-153.0,0.00039268,2]
[341137665,1730460443345,-153.0,0.00039268,2]
[341137666,1730460443366,-153.0,0.00039268,2]
[341137667,1730460443387,-153.0,0.00039274,2]
[341137668,1730460443409,-153.0,0.00039274,2]
[341137669,1730460443430,-153.0,0.00039274,2]
[341137670,1730460443450,-153.0,0.0003928,2]
[341137671,1730460443471,-153.0,0.0003928,2]
[341137672,1730460443492,-153.0,0.0003928,2]
[341137673,1730460443513,-153.0,0.0003928,2]
[341137674,1730460443534,-153.0,0.00039286,2]
[341137675,1730460443553,-1208.16,0.00039478,2]
[341137676,1730460443573,-1540.56,0.00039486,2]
[341137677,1730460443592,-800.0,0.00039494,2]
[341137678,1730460443613,-65.27721515,0.00039791,2]
[341137679,1730460505548,41201.95787185,0.0002,2]
[341137680,1730460552095,-9123.87292474,0.000275,2]
[341137681,1730460552114,-1256.82156721,0.00029,3]
[341137682,1730460552134,-728.12809634,0.0003,15]
[341137683,1730460552154,-1297.88238137,0.0003,2]
[341137684,1730460552177,-1013.50328971,0.0003,2]
[341137685,1730460552198,-398.61023212,0.00033,2]
[341137686,1730460552218,-1151.80328345,0.000335,2]
[341137687,1730460552239,-597.8,0.00035,3]
[341137689,1730460574173,925.13,0.00043,120]
[341137705,1730460631641,-360.0,0.00039673,2]
[341137706,1730460631650,-279.1451804,0.00039791,2]
[341137707,1730460631662,-133.91760445,0.00039791,2]
[341137708,1730460631671,-210.41647834,0.00039954,2]
[341137709,1730460631693,-1914.03894294,0.00039954,2]
[341137710,1730460631704,-571.52115498,0.00039954,2]
[341137711,1730460631715,-320.25724888,0.00039954,2]
[341137712,1730460631741,-6509.26617486,0.00039954,2]
[341137713,1730460631751,-166.17,0.00040091,2]
[341137714,1730460631761,-500.0,0.00040234,3]
[341137715,1730460631770,-150.0,0.00040274,2]
[341137716,1730460631779,-152.0,0.00040376,3]
[341137717,1730460631788,-823.32,0.00040377,2]
[341137718,1730460631797,-801.45,0.00040377,2]
[341137719,1730460631806,-1500.0,0.00040394,2]
[341137720,1730460631815,-1500.0,0.00040421,2]
[341137721,1730460631824,-1500.0,0.00040434,2]
[341137722,1730460631834,-189.903,0.00040435,58]
[341137723,1730460631843,-1500.0,0.00040437,2]
[341137724,1730460631852,-150.0,0.00040438,2]
[341137725,1730460631862,-3.60284394,0.00040463,2]
[341137726,1730460631873,-146.39715606,0.00040463,2]
[341137727,1730460631882,-150.0,0.00040495,2]
[341137728,1730460631892,-150.0,0.00040506,2]
[341137729,1730460631901,-1500.0,0.00040507,2]
[341137730,1730460631910,-1500.0,0.00040507,2]
[341137731,1730460631919,-150.0,0.00040518,2]
[341137733,1730460631928,-1500.0,0.00040522,2]
[341137735,1730460631937,-1500.0,0.00040578,2]
[341137736,1730460631948,-150.0,0.00040581,2]
[341137737,1730460631957,-150.0,0.00040583,2]
[341137738,1730460631967,-150.0,0.00040614,2]
[341137739,1730460631976,-565.0,0.00040643,5]
[341137740,1730460631988,-150.0,0.00040658,2]
[341137741,1730460631997,-150.0,0.00040701,2]
[341137742,1730460632007,-213.91167558,0.00040703,2]
[341137743,1730460632017,-150.0,0.00040708,2]
[341137744,1730460632026,-213.91167558,0.00040711,2]
[341137745,1730460632037,-1275.12222097,0.00040727,2]
[341137746,1730460632048,-55524.25759912,0.00040728,2]
[341137747,1730460632058,-22607.4222918,0.00040732,2]
[341137749,1730460632068,-1871.02324921,0.00040733,2]
[341137751,1730460632078,-213.91167558,0.00040751,2]
[341137753,1730460632087,-1871.02324921,0.00040758,2]
[341137755,1730460632097,-1871.02324921,0.00040784,2]
[341137757,1730460632106,-3404.34633378,0.00040794,2]
[341137759,1730460632115,-162.3,0.00040796,2]
[341137761,1730460632125,-68497.67321695,0.00040796,2]
[341137763,1730460632135,-213.91167558,0.000408,2]
[341137765,1730460632144,-1178.58200175,0.00040895,15]
[341137767,1730460632154,-2378.9934,0.00040895,2]
[341137769,1730460632163,-2254.59001444,0.00040994,2]
[341137771,1730460632174,-173.44012077,0.00040995,28]
[341137773,1730460632189,-1348.3210829,0.00041,5]
[341137775,1730460632199,-500.0,0.00041073,2]
[341137776,1730460632210,-500.0,0.00041095,3]
[341137777,1730460632220,-611.22424276,0.00041095,2]
[341137778,1730460632231,-500.0,0.00041095,3]
[341137779,1730460632241,-500.0,0.00041095,3]
[341137780,1730460632251,-500.0,0.00041095,3]
[341137781,1730460632263,-509.5840486,0.00041095,3]
[341137782,1730460632273,-500.0,0.00041095,3]
[341137783,1730460632282,-500.0,0.00041095,3]
[341137784,1730460632290,-500.0,0.00041095,3]
[341137785,1730460632299,-500.0,0.00041095,3]
[341137786,1730460632308,-500.0,0.00041095,3]
[341137787,1730460632317,-500.0,0.00041095,3]
[341137788,1730460632327,-500.0,0.00041095,3]
[341137789,1730460632336,-500.0,0.00041095,3]
[341137790,1730460632346,-200.0,0.00041095,3]
[341137791,1730460632356,-500.0,0.00041095,3]
[341137792,1730460632367,-500.0,0.00041095,3]
[341137793,1730460632376,-303.18429917,0.00041095,3]
[341137794,1730460632386,-500.0,0.00041095,3]
[341137795,1730460632395,-500.0,0.00041095,3]
[341137796,1730460632403,-311.07486428,0.00041095,3]
[341137797,1730460632413,-293.27907546,0.00041095,3]
[341137798,1730460632547,-66.10268402,0.00041095,3]
[341137800,1730460637591,-150.0,0.00040615,2]
[341137801,1730460637602,-140.61824052,0.00041095,3]
[341137802,1730460637611,-500.0,0.00041095,3]
[341137803,1730460637621,-500.0,0.00041095,3]
[341137804,1730460637631,-500.0,0.00041095,3]
[341137805,1730460637643,-502.15017692,0.00041095,3]
[341137806,1730460637652,-503.43364402,0.00041095,3]
[341137807,1730460637661,-503.11782736,0.00041095,3]
[341137808,1730460637670,-500.0,0.00041095,3]
[341137809,1730460637679,-500.0,0.00041095,3]
[341137810,1730460637688,-464.53858135,0.00041095,3]
[341137811,1730460637698,-557.18,0.00041095,3]
[341137812,1730460637710,-504.98516937,0.00041095,3]
[341137813,1730460637720,-487.56636046,0.00041095,3]
[341137814,1730460637734,-12.43363954,0.00041095,3]
[341137815,1730460637744,-504.65804828,0.00041095,3]
[341137816,1730460637754,-184.95831218,0.00041095,3]
[341137818,1730460638410,-315.04168782,0.00041095,3]
[341137819,1730460638420,-500.0,0.00041095,3]
[341137820,1730460638430,-500.0,0.00041095,3]
[341137821,1730460638439,-582.14779345,0.00041095,3]
[341137822,1730460638448,-520.69,0.00041095,3]
[341137823,1730460638457,-500.0,0.00041095,3]
[341137824,1730460638467,-57.27722511,0.00041095,3]
[341137849,1730460639605,-442.72277489,0.00041095,3]
[341137851,1730460639614,-258.30747811,0.00041095,3]
[341137881,1730460639896,-454.53368832,0.00041095,3]
[341137883,1730460639905,-500.0,0.00041095,3]
[341137885,1730460639915,-322.68720511,0.00041095,3]
[341137887,1730460639925,-549.845198,0.00041095,3]
[341137889,1730460639934,-500.0,0.00041095,3]